bitfinex/quotes_ETHUSD_20250518
["timestamp","ask_amount","ask_price","bid_price","bid_amount"]
[1747589876018,3.95945652,2525.6,2525.1,13.683]
[1747589876217,13.724,2525.7,2525.1,13.683]
[1747589876563,0.32915283,2526.0,2525.0,0.005]
[1747589876857,13.679,2525.9,2525.1,13.689]
[1747589877020,3.95898491,2525.9,2525.2,3.96006089]
[1747589877219,0.32915283,2526.0,2525.2,1.5675]
[1747589877417,3.95939776,2525.7,2525.2,1.5675]
[1747589877666,0.32915283,2526.0,2525.2,1.5675]
[1747589877821,3.95910059,2525.9,2525.2,5.52747298]
[1747589878017,1.65222219,2525.8,2525.0,0.005]
[1747589878220,0.32915283,2526.0,2525.1,13.693]
[1747589878442,0.04948617,2525.9,2525.1,13.693]
[1747589878642,0.32915283,2526.0,2525.2,0.03246423]
[1747589878813,0.32915283,2526.0,2525.2,3.96008236]
[1747589879027,0.32915283,2526.0,2525.4,1.6234]
[1747589879340,0.32915283,2526.0,2525.5,17.09]
[1747589879730,0.32915283,2526.0,2525.5,21.04951995]
[1747589879922,4.28803792,2526.0,2525.5,17.09]
[1747589880116,4.28802429,2526.0,2525.6,13.693]
[1747589880457,0.32915283,2526.0,2525.6,13.693]
[1747589880958,3.95929841,2525.7,2525.6,13.693]
[1747589881158,3.95945517,2525.6,2525.5,17.09]
[1747589881463,3.95945517,2525.6,2525.5,30.785]
[1747589881832,0.32915283,2525.7,2525.5,30.785]
[1747589882952,0.32915283,2525.7,2525.6,13.697]
[1747589883341,0.32915283,2525.7,2525.6,17.65645517]
[1747589883545,1.5282,2527.2,2526.4,3.95818727]
[1747589883753,0.20613491,2527.7,2526.6,1.6067]
[1747589883754,1.5028,2527.7,2526.6,1.6067]
[1747589883945,3.95544793,2528.2,2527.1,3.95707615]
[1747589884275,3.95616988,2527.7,2527.2,13.697]
[1747589884452,3.9556962,2528.0,2527.4,3.9566237]
[1747589884657,1.5028,2528.0,2527.4,0.09876237]
[1747589884820,1.5028,2528.0,2524.3,1.98604362]
[1747589884821,0.1,2526.1,2521.8,1.86040502]
[1747589885023,1.0669,2524.3,2523.0,0.33086904]
[1747589885247,0.04953923,2524.2,2523.0,11.51544309]
[1747589885446,1.0669,2525.4,2523.2,5.60811576]
[1747589885648,1.0669,2525.4,2523.8,1.6067]
[1747589885822,1.0669,2526.0,2524.0,1.6067]
[1747589886022,1.0669,2526.0,2524.2,5.60811576]
[1747589886237,3.95914165,2525.8,2524.2,5.60811576]
[1747589886529,3.96019903,2525.2,2524.2,5.93882751]
[1747589886724,3.96022946,2525.2,2524.2,0.33071175]
[1747589887056,14.517,2525.7,2524.3,14.229]
[1747589887247,3.96056854,2524.9,2524.3,14.229]
[1747589887625,3.95938173,2525.7,2524.3,14.229]
[1747589887861,3.96034911,2525.1,2524.3,14.229]
[1747589888064,18.43523359,2525.8,2524.3,14.229]
[1747589888381,18.43523359,2525.8,2524.4,1.4955723]
[1747589888382,3.95993646,2525.3,2524.4,1.4955723]
[1747589888588,3.95878673,2526.1,2524.8,3.96067478]
[1747589888735,3.95857125,2526.2,2524.9,21.0584299]
[1747589889066,3.96005508,2525.3,2525.0,31.327]
[1747589889275,14.439,2525.9,2525.0,31.327]
[1747589889458,3.96023919,2525.1,2525.0,17.098]
[1747589890170,3.96023919,2525.1,2525.0,31.328]
[1747589890466,1.5008,2525.6,2525.0,31.328]
[1747589890672,14.39898897,2525.6,2524.2,0.33071175]
[1747589890842,3.96149427,2524.3,2524.2,17.43071175]
[1747589891167,3.96149427,2524.3,2524.2,31.66071175]
[1747589891487,5.46229427,2524.3,2524.2,0.33071175]
[1747589891985,3.96416395,2522.6,2522.5,1.6093]
[1747589892164,3.96416395,2522.6,2522.5,14.23]
[1747589892761,3.96259312,2523.6,2522.4,17.1]
[1747589892932,3.96370535,2522.9,2522.5,14.232]
[1747589893132,0.29202303,2524.4,2522.6,1.6093]
[1747589893335,0.01698897,2524.3,2522.6,1.6093]
[1747589893671,0.01698897,2524.3,2522.7,14.232]
[1747589893847,0.32915283,2524.2,2522.9,5.61457246]
[1747589894044,0.32915283,2524.2,2523.8,1.6509]
[1747589894367,0.32915283,2524.2,2523.9,31.334]
[1747589894576,3.95992555,2525.3,2524.0,3.13452655]
[1747589894880,3.96045846,2525.0,2524.1,3.9617496]
[1747589895238,14.402,2525.4,2524.0,3.13452655]
[1747589895438,4.28923275,2525.3,2524.0,3.13452655]
[1747589895640,0.32915283,2525.2,2524.7,1.6509]
[1747589895975,0.32915283,2525.2,2524.8,14.234]
[1747589896176,0.32915283,2525.2,2524.9,17.104]
[1747589896338,0.5982678,2526.4,2524.9,17.104]
[1747589896536,0.5982678,2526.4,2525.1,1.6509]
[1747589896738,0.5982678,2526.4,2525.8,3.9591258]
[1747589896974,0.5982678,2526.4,2525.9,35.2969668]
[1747589897140,0.5982678,2526.4,2525.9,17.104]
[1747589897341,0.5982678,2526.4,2526.0,14.234]
[1747589897673,1.9362372,2527.3,2526.3,1.6509]
[1747589897977,3.95724103,2527.1,2526.3,5.60925359]
[1747589898139,1.91924823,2527.3,2526.4,3.99766464]
[1747589898338,1.91924823,2527.3,2526.5,3.95790857]
[1747589898574,1.91924823,2527.3,2526.9,3.95741143]
[1747589898782,1.91924823,2527.3,2527.0,31.332]
[1747589898967,0.34220482,2527.9,2527.0,31.332]
[1747589898968,0.34220482,2527.9,2527.0,17.101]
[1747589899165,3.95673925,2527.4,2526.3,1.6509]
[1747589899382,0.34220482,2527.9,2525.3,17.101]
[1747589899383,7.18791576,2527.2,2525.3,17.101]
[1747589899686,3.95726157,2527.0,2525.6,3.95935348]
[1747589899979,3.9579895,2526.6,2525.9,3.95885333]
[1747589900183,3.95800559,2526.6,2525.5,1.5465]
[1747589900483,3.95798399,2526.6,2525.9,3.95889184]
[1747589900683,3.9576448,2526.8,2526.0,14.231]
[1747589900856,3.9569484,2527.2,2525.9,0.79181392]
[1747589901048,3.95867146,2526.1,2526.0,14.231]
[1747589901248,3.95857894,2526.2,2526.0,14.231]
[1747589901448,3.95867146,2526.1,2526.0,14.231]
[1747589901686,3.95860877,2526.2,2526.0,14.231]
[1747589901978,3.95867146,2526.1,2526.0,14.231]
[1747589902176,4.75039045,2526.1,2526.0,31.328]
[1747589902678,1.5798,2527.2,2526.0,31.328]
[1747589902978,3.95852519,2526.2,2526.0,31.328]
[1747589903178,3.95844835,2526.3,2526.0,31.328]
[1747589903379,3.95867146,2526.1,2526.0,31.328]
[1747589904068,3.95867146,2526.1,2526.0,17.099]
[1747589904290,6.33867067,2526.1,2526.0,17.099]
[1747589904452,14.33867067,2526.1,2526.0,17.099]
[1747589904783,14.33867067,2526.1,2526.0,17.42947609]
[1747589904980,38.66691267,2526.1,2526.0,17.42947609]
[1747589905196,28.60167067,2526.1,2526.0,17.42947609]
[1747589905480,18.21367146,2526.1,2526.0,17.42947609]
[1747589905778,3.95867146,2526.1,2526.0,17.42947609]
[1747589907585,3.9584724,2526.3,2526.0,17.42947609]
[1747589907879,3.9584724,2526.3,2526.1,0.330463]
[1747589908082,3.95851476,2526.2,2526.1,0.330463]
[1747589908283,4.76720245,2526.2,2526.1,14.559463]
[1747589908447,3.95851476,2526.2,2526.1,14.559463]
[1747589908780,3.9581199,2526.5,2526.1,14.559463]
[1747589908966,1.5251,2527.1,2526.1,0.330463]
[1747589908967,3.95851476,2526.2,2526.1,0.330463]
[1747589909294,3.95851476,2526.2,2526.1,14.559463]
[1747589909477,3.95851476,2526.2,2526.1,13.23393206]
[1747589910083,3.95841101,2526.3,2526.1,13.23393206]
[1747589910284,0.36237624,2526.9,2526.1,13.23393206]
[1747589910285,3.95851476,2526.2,2526.1,13.23393206]
[1747589911607,3.9579246,2526.6,2526.1,13.23393206]
[1747589911608,3.95807101,2526.5,2526.1,13.23393206]
[1747589911763,13.983,2526.9,2526.2,14.228]
[1747589911963,3.95762859,2526.8,2526.2,14.228]
[1747589912165,3.95757479,2526.8,2526.2,18.18645332]
[1747589912364,3.95743766,2526.9,2526.3,5.4727158]
[1747589912561,3.95730228,2527.0,2526.3,5.47280576]
[1747589912763,3.95699331,2527.2,2526.7,3.95771986]
[1747589913002,0.39567393,2527.3,2526.8,0.03957305]
[1747589913181,0.5982678,2527.5,2527.0,3.95717454]
[1747589913378,0.5982678,2527.5,2527.2,1.5145]
[1747589913585,0.5982678,2527.5,2527.4,3.95663527]
[1747589913900,3.9558164,2528.0,2527.4,14.227]
[1747589914105,3.95625821,2527.7,2527.4,14.227]
[1747589914302,3.95604771,2527.8,2527.4,14.227]
[1747589914485,3.95555983,2528.1,2527.5,3.95647873]
[1747589914802,0.5982678,2528.3,2528.2,5.50018327]
[1747589915009,0.5982678,2528.3,2528.2,36.49318327]
[1747589915306,1.91924823,2528.8,2528.7,3.95460117]
[1747589915495,1.91924823,2528.8,2528.2,32.5378]
[1747589915700,1.91924823,2528.8,2528.7,3.95460117]
[1747589916071,1.91924823,2528.8,2528.7,13.893]
[1747589916271,1.91924823,2528.8,2528.2,22.59608357]
[1747589916472,1.91924823,2528.8,2528.2,18.6408]
[1747589916708,2.23310169,2528.8,2528.3,13.893]
[1747589916905,2.23310169,2528.8,2528.2,18.6408]
[1747589916906,3.95518744,2528.4,2528.2,18.6408]
[1747589917106,3.95496551,2528.5,2528.3,13.893]
[1747589917305,3.9550704,2528.4,2528.3,13.893]
[1747589917605,0.31385346,2528.8,2528.3,13.893]
[1747589917802,3.95366306,2529.3,2528.4,13.893]
[1747589918109,3.95491398,2528.5,2528.4,13.893]
[1747589918409,3.95453671,2528.8,2528.4,13.893]
[1747589918728,13.77,2529.3,2528.4,13.893]
[1747589918870,17.71176851,2529.3,2528.4,13.893]
[1747589919071,3.95475757,2528.6,2528.5,13.893]
[1747589919504,3.95522683,2528.3,2528.2,17.096]
[1747589919710,5.59000295,2528.5,2528.2,13.891]
[1747589919886,3.95522683,2528.3,2528.2,13.891]
[1747589920302,3.95522683,2528.3,2528.2,14.22118851]
[1747589920470,5.24569315,2528.3,2528.2,14.22118851]
[1747589920671,5.24569315,2528.3,2528.2,0.33018851]
[1747589921103,12.52964315,2528.3,2528.2,0.33018851]
[1747589921304,20.82439222,2528.3,2528.2,0.33018851]
[1747589921710,19.33610315,2528.3,2528.2,0.33018851]
[1747589921874,26.88669315,2528.3,2528.2,0.33018851]
[1747589922075,34.65460115,2528.3,2528.2,0.33018851]
[1747589922613,33.49809315,2528.3,2528.2,0.33018851]
[1747589923319,3.95553973,2528.1,2528.0,17.088]
[1747589923517,26.26788858,2528.1,2528.0,17.088]
[1747589924012,20.89349258,2528.1,2528.0,17.088]
[1747589924176,17.89787658,2528.1,2528.0,17.088]
[1747589924504,16.36087658,2528.1,2528.0,17.088]
[1747589924871,13.87826658,2528.1,2528.0,17.088]
[1747589925075,27.36926658,2528.1,2528.0,17.088]
[1747589925302,29.38546658,2528.1,2528.0,17.088]
[1747589925502,27.36926658,2528.1,2528.0,17.088]
[1747589925808,3.95628458,2527.7,2527.3,17.088]
[1747589926009,5.58738458,2527.7,2527.6,13.551]
[1747589926214,19.01738458,2527.7,2527.6,13.551]
[1747589927213,17.35128458,2527.7,2527.6,13.551]
[1747589927374,3.95628458,2527.7,2527.6,13.551]
[1747589928127,3.95496155,2528.5,2527.6,15.069]
[1747589928333,3.95538327,2528.2,2527.6,1.518]
[1747589928474,3.95538327,2528.2,2527.3,17.088]
[1747589928475,3.9560663,2527.8,2527.7,13.551]
[1747589929712,3.95586157,2527.9,2527.7,13.551]
[1747589929912,3.95564087,2528.1,2527.7,12.22627556]
[1747589930617,3.95570757,2528.0,2527.7,12.22627556]
[1747589930812,3.95585424,2527.9,2527.7,12.22627556]
[1747589931313,0.44069424,2528.4,2527.3,17.088]
[1747589931490,18.80231246,2528.7,2527.3,17.088]
[1747589931491,3.95585268,2527.9,2527.8,13.217]
[1747589937024,3.95945517,2525.6,2524.8,1.6007]
[1747589937323,3.95945517,2525.6,2524.6,1.23778322]
[1747589937508,3.95945517,2525.6,2525.3,13.216]
[1747589938021,17.35645517,2525.6,2524.4,1.6007]
[1747589938193,17.35645517,2525.6,2524.8,13.216]
[1747589938380,3.95945517,2525.6,2524.8,13.216]
[1747589938580,17.35745517,2525.6,2524.8,13.216]
[1747589938786,19.33992694,2525.6,2525.0,13.216]
[1747589938982,35.50384494,2525.6,2525.0,13.216]
[1747589939246,51.08146446,2525.6,2525.0,13.216]
[1747589939533,38.37076146,2525.6,2524.6,13.216]
[1747589939824,29.35294646,2525.6,2524.6,13.216]
[1747589940027,39.03154646,2525.6,2524.6,13.216]
[1747589940188,50.35448246,2525.6,2524.6,13.216]
[1747589940612,50.35448246,2525.6,2524.1,17.086]
[1747589940613,3.96165121,2524.2,2524.1,17.086]
[1747589940834,17.27065121,2524.2,2524.1,17.086]
[1747589941345,38.53189921,2524.2,2524.1,17.086]
[1747589941644,17.26865121,2524.2,2524.1,17.086]
[1747589942189,0.29250011,2524.3,2523.4,0.005]
[1747589942491,13.299,2524.2,2523.4,0.005]
[1747589942692,13.299,2524.2,2523.4,1.38949429]
[1747589942939,3.96238948,2523.8,2523.4,0.005]
[1747589943441,3.96197682,2524.0,2523.4,0.005]
[1747589943994,1.6072,2524.7,2523.4,0.005]
[1747589944351,1.6072,2524.7,2523.5,13.226]
[1747589944352,3.96225293,2523.9,2523.5,13.226]
[1747589944520,3.96198371,2524.0,2523.5,13.226]
[1747589944836,3.96241319,2523.8,2523.6,13.226]
[1747589944988,3.96118043,2524.5,2523.6,13.226]
[1747589945188,0.58637313,2524.5,2523.6,13.226]
[1747589945412,3.9624361,2523.7,2523.6,13.226]
[1747589945812,3.96275014,2523.5,2523.4,0.005]
[1747589946190,5.54935014,2523.5,2523.4,0.005]
[1747589946600,3.96275014,2523.5,2523.4,0.005]
[1747589946785,3.96262997,2523.6,2523.4,0.005]
[1747589946986,3.96262997,2523.6,2523.5,17.103]
[1747589947226,3.96262997,2523.6,2523.5,30.332]
[1747589947428,3.96259312,2523.6,2523.5,30.332]
[1747589947833,1.5866,2524.4,2523.5,30.332]
[1747589947991,3.96234565,2523.8,2523.5,30.332]
[1747589948207,3.96198735,2524.0,2523.5,30.332]
[1747589948208,3.96221559,2523.9,2523.5,30.332]
[1747589948414,3.96237806,2523.8,2523.5,30.332]
[1747589948623,3.96252432,2523.7,2523.5,30.332]
[1747589948942,3.96259312,2523.6,2523.5,30.332]
[1747589949354,3.96259312,2523.6,2523.5,17.103]
[1747589949548,3.96259312,2523.6,2523.5,30.334]
[1747589949849,3.96259312,2523.6,2523.5,17.103]
[1747589949850,6.06930486,2523.6,2523.5,17.103]
[1747589950550,3.96253141,2523.7,2523.5,17.103]
[1747589950744,5.54806308,2524.4,2523.5,17.103]
[1747589951044,3.96185831,2524.1,2523.5,21.06565557]
[1747589951366,3.96086663,2524.7,2523.9,3.96197531]
[1747589951527,3.96086663,2524.7,2523.6,1.5001]
[1747589951528,13.083,2524.6,2523.6,1.5001]
[1747589951728,13.075,2524.9,2523.7,1.86031]
[1747589952038,3.96142629,2524.4,2523.8,17.1932539]
[1747589952238,3.96126305,2524.5,2523.8,17.19323939]
[1747589952554,12.2558454,2524.8,2523.9,13.233]
[1747589952846,13.07098897,2524.7,2523.9,13.233]
[1747589953058,3.96110705,2524.6,2524.0,3.96186734]
[1747589953212,17.01489124,2524.7,2523.9,17.19500585]
[1747589953416,17.01489124,2524.7,2524.0,3.96195781]
[1747589953652,17.01490152,2524.7,2524.0,3.96182929]
[1747589953847,3.9611555,2524.6,2524.1,13.233]
[1747589954058,0.29076677,2525.2,2524.1,13.233]
[1747589954259,12.999,2525.4,2524.3,3.96149427]
[1747589954423,14.91524823,2526.0,2525.2,1.5796]
[1747589954619,0.32915283,2525.9,2525.3,30.341]
[1747589954818,1.91924823,2526.0,2525.4,3.95976874]
[1747589955052,12.992,2526.1,2525.5,13.232]
[1747589955219,12.992,2526.1,2525.3,17.108]
[1747589955418,12.992,2526.1,2525.4,13.232]
[1747589955614,3.95907845,2525.9,2525.4,13.232]
[1747589955820,0.59851948,2526.7,2526.4,3.95820139]
[1747589956142,4.40870447,2526.5,2526.4,17.107]
[1747589956663,1.71359548,2526.6,2526.4,17.107]
[1747589956833,3.95599377,2527.9,2526.4,17.107]
[1747589956834,13.138,2528.1,2526.6,1.5796]
[1747589957056,17.107,2527.2,2526.7,0.03956805]
[1747589957328,3.95756326,2526.9,2526.8,0.33037146]
[1747589957567,30.36856326,2526.9,2526.8,0.33037146]
[1747589957724,13.232,2526.9,2526.5,0.206]
[1747589957917,3.95788807,2526.6,2526.5,0.206]
[1747589958158,3.97487704,2526.6,2526.5,0.206]
[1747589958459,17.5829928,2526.6,2526.5,0.206]
[1747589958663,19.72006059,2526.6,2526.5,0.206]
[1747589959115,0.46386231,2526.9,2526.5,0.206]
[1747589959321,3.95788807,2526.6,2526.5,0.206]
[1747589959521,3.9574138,2527.0,2526.5,0.206]
[1747589959825,13.261,2527.2,2526.8,1.5939]
[1747589960051,13.256,2527.4,2526.8,1.5939]
[1747589960284,1.5714,2528.8,2526.8,14.8229]
[1747589960479,13.271,2529.1,2528.4,1.5939]
[1747589960759,1.5714,2529.7,2528.4,1.5939]
[1747589960922,3.95258523,2530.0,2528.5,3.95491398]
[1747589961121,13.266,2529.9,2528.4,1.5939]
[1747589961358,0.01698897,2529.8,2528.4,1.5939]
[1747589961558,3.95355121,2529.4,2528.4,1.5939]
[1747589961718,3.95355121,2529.4,2528.5,3.9548989]
[1747589961923,13.256,2529.3,2528.5,3.95491398]
[1747589962145,13.254,2529.5,2528.6,3.95471397]
[1747589962353,2.46940424,2529.7,2528.4,1.5939]
[1747589962569,2.46940424,2529.7,2528.6,1.5939]
[1747589962871,2.46940424,2529.7,2529.2,3.95378621]
[1747589963026,2.46940424,2529.7,2529.0,3.95399432]
[1747589963224,3.9533541,2529.5,2528.7,17.098]
[1747589963423,19.66244458,2529.7,2528.7,17.098]
[1747589963629,15.70940424,2529.7,2529.0,3.95400933]
[1747589963867,13.218,2529.6,2529.1,3.95396212]
[1747589964062,2.46940424,2529.7,2529.4,1.5314]
[1747589965166,6.42246571,2529.7,2529.4,1.5314]
[1747589965342,3.95352444,2529.4,2528.8,1.5314]
[1747589965671,17.17678523,2529.3,2528.8,1.5314]
[1747589965883,13.223,2529.3,2528.8,1.5314]
[1747589966077,3.95397572,2529.1,2528.3,1.5314]
[1747589966374,13.205,2529.3,2528.3,1.5314]
[1747589966530,5.35350048,2529.2,2528.3,5.48660221]
[1747589966732,3.95431638,2528.9,2528.3,1.5314]
[1747589966961,3.95416412,2529.0,2528.3,1.5314]
[1747589967262,13.171,2528.9,2528.5,3.95488019]
[1747589967470,13.171,2528.9,2528.3,1.5314]
[1747589968666,0.01698897,2528.8,2527.8,21.04687364]
[1747589968965,1.6531,2529.7,2527.9,14.8206]
[1747589969166,1.6531,2529.7,2528.1,1.5676]
[1747589969335,3.95338217,2529.5,2528.9,1.5676]
[1747589969530,13.113,2529.4,2528.9,1.5676]
[1747589970469,5.60555861,2530.1,2528.9,1.5676]
[1747589970470,1.6531,2530.1,2529.1,3.95382215]
[1747589970656,1.6531,2530.1,2528.9,1.5676]
[1747589970857,13.08198897,2530.0,2528.9,3.04966]
[1747589971061,3.95194435,2530.4,2529.0,3.95403967]
[1747589971062,3.95331679,2529.6,2529.0,3.95403967]
[1747589971370,0.01698897,2529.7,2528.9,1.5676]
[1747589971569,8.0,2530.3,2528.9,1.5676]
[1747589971570,11.95210054,2530.3,2528.9,1.5676]
[1747589971871,3.95346596,2529.5,2528.9,5.52183689]
[1747589972182,13.039,2529.4,2528.9,5.52183689]
[1747589972674,3.95313531,2529.7,2529.1,3.95393238]
[1747589972879,12.986,2529.3,2528.9,1.5676]
[1747589973077,3.95247714,2530.1,2529.0,3.95398934]
[1747589973276,3.95247714,2530.1,2528.9,5.52183373]
[1747589973277,3.9527254,2529.9,2528.9,1.5676]
[1747589973479,3.9529796,2529.8,2528.9,1.5676]
[1747589973684,12.956,2530.0,2528.9,1.5676]
[1747589973844,8.0,2530.3,2528.9,1.5676]
[1747589974043,3.95214979,2530.3,2529.5,3.95325436]
[1747589974352,12.927,2530.3,2529.5,0.39532544]
[1747589974547,12.922,2530.7,2530.0,3.95247461]
[1747589974740,12.922,2530.7,2529.6,5.5718159]
[1747589974741,12.922,2530.7,2530.1,12.95951593]
[1747589974942,3.95125417,2530.9,2530.1,16.87230736]
[1747589975138,1.6109,2531.7,2530.2,1.6186155]
[1747589975343,12.9,2531.6,2530.3,1.45386155]
[1747589975544,12.9,2531.6,2530.4,12.92]
[1747589975772,3.95086702,2531.1,2530.4,16.87193883]
[1747589975985,3.94866732,2532.5,2530.5,1.5791]
[1747589976167,18.53110473,2532.4,2530.5,1.5791]
[1747589976348,3.94972163,2531.9,2530.5,1.5791]
[1747589976549,1.6109,2532.3,2530.5,1.5791]
[1747589976780,3.95086127,2531.1,2530.5,1.5791]
[1747589976967,3.94960306,2531.9,2530.5,1.5791]
[1747589976968,3.95141613,2530.8,2530.5,14.4961]
[1747589977167,3.95163202,2530.6,2530.5,14.4961]
[1747589977482,3.95143911,2530.8,2530.5,14.4961]
[1747589977677,3.95163202,2530.6,2530.5,12.917]
[1747589978286,3.95256916,2530.0,2529.9,17.081]
[1747589978453,3.95204497,2530.4,2529.9,17.41096664]
[1747589978653,3.95131974,2530.8,2530.0,0.3299536]
[1747589978850,3.95043784,2531.4,2530.0,0.3299536]
[1747589979046,3.95164916,2530.6,2530.0,2.07104896]
[1747589979250,3.951706,2530.6,2530.0,6.02350053]
[1747589979450,12.831,2530.5,2530.0,2.07104896]
[1747589979651,3.95195483,2530.4,2530.0,0.3299536]
[1747589980080,12.812,2530.5,2530.0,0.3299536]
[1747589980081,3.95222752,2530.3,2530.0,0.3299536]
[1747589980283,3.95038329,2531.4,2530.0,0.3299536]
[1747589980451,3.95147701,2530.7,2530.0,4.28242623]
[1747589980655,3.95205463,2530.4,2530.0,0.3299536]
[1747589980851,12.77,2530.5,2530.0,0.3299536]
[1747589981051,3.95223009,2530.3,2530.0,0.3299536]
[1747589981292,3.95221697,2530.3,2530.0,0.3299536]
[1747589981486,3.95241294,2530.1,2530.0,0.3299536]
[1747589981850,3.95256916,2530.0,2529.9,29.995]
[1747589982187,3.95256916,2530.0,2529.7,1.5791]
[1747589982188,3.95288165,2529.8,2529.7,1.5791]
[1747589982395,3.95374846,2529.3,2529.0,17.074]
[1747589982595,3.95362243,2529.4,2529.0,17.074]
[1747589982893,12.727,2529.4,2529.0,21.02811686]
[1747589983089,16.68056511,2529.4,2529.0,17.074]
[1747589983290,16.68052825,2529.4,2529.0,17.074]
[1747589983464,3.95397572,2529.1,2529.0,17.074]
[1747589983663,3.95397572,2529.1,2528.7,12.913]
[1747589983664,3.95444479,2528.8,2528.7,12.913]
[1747589983991,3.95413206,2529.0,2528.0,18.6645]
[1747589984191,3.95465602,2528.0,2527.5,14.5055]
[1747589984487,3.95540827,2528.2,2527.6,13.24326689]
[1747589984653,3.95540827,2528.2,2527.7,0.33025383]
[1747589984854,3.95499773,2528.5,2527.9,3.9558109]
[1747589985054,3.95508182,2528.4,2527.8,3.95594587]
[1747589985486,3.95548654,2528.2,2527.7,0.33025383]
[1747589985701,3.97201857,2528.5,2527.7,0.33025383]
[1747589985903,3.9550296,2528.5,2527.7,0.33025383]
[1747589986103,3.95538629,2528.2,2527.7,0.33025383]
[1747589986268,12.729,2528.1,2527.7,0.33025383]
[1747589986469,3.95588198,2527.9,2527.7,0.33025383]
[1747589986904,16.68455456,2528.1,2527.5,18.46391959]
[1747589987204,3.95515623,2528.4,2527.8,3.95600657]
[1747589987397,3.95502962,2528.5,2527.9,3.95575601]
[1747589987595,12.729,2528.5,2527.8,0.79123288]
[1747589987793,3.95476211,2528.6,2528.0,3.95556747]
[1747589987975,3.95476211,2528.6,2527.6,3.95627296]
[1747589988177,12.729,2528.5,2528.0,3.95559954]
[1747589988374,16.68394275,2528.5,2528.1,12.917]
[1747589988578,12.729,2528.5,2528.2,12.917]
[1747589988881,12.729,2528.5,2528.3,12.917]
[1747589989198,0.39539757,2529.1,2528.3,12.917]
[1747589989514,3.95430997,2528.9,2528.3,18.48709047]
[1747589989718,1.506,2529.7,2528.3,31.61]
[1747589990005,3.95353736,2529.4,2528.3,18.693]
[1747589990210,3.95478729,2528.6,2528.3,18.693]
[1747589990582,3.95450204,2528.8,2528.3,18.693]
[1747589990802,12.73,2528.7,2528.3,18.693]
[1747589991013,3.95478984,2528.6,2528.3,18.693]
[1747589991210,3.95491398,2528.5,2528.4,12.918]
[1747589991572,3.95497483,2528.5,2528.3,17.078]
[1747589991777,3.95350676,2529.4,2528.3,17.078]
[1747589991974,3.95500394,2528.5,2528.0,12.918]
[1747589992293,3.95553973,2528.1,2527.9,1.615]
[1747589992484,3.95589185,2527.9,2527.7,12.918]
[1747589993422,3.95562412,2528.1,2527.7,12.918]
[1747589993599,3.95545794,2528.2,2527.7,12.918]
[1747589993928,12.73,2528.1,2527.8,3.95591941]
[1747589994426,12.73,2528.1,2527.7,14.76692343]
[1747589994427,12.73,2528.1,2527.7,18.72301085]
[1747589994593,12.73,2528.1,2527.7,3.95608742]
[1747589994801,3.95611196,2527.8,2527.5,1.615]
[1747589995011,3.95616568,2527.7,2527.6,12.919]
[1747589995209,3.95605585,2527.8,2527.6,12.919]
[1747589995414,3.95616568,2527.7,2527.6,12.919]
[1747589995583,3.95710498,2527.1,2526.6,18.6455]
[1747589995785,16.68836983,2527.0,2526.4,3.95808676]
[1747589996014,3.95767025,2526.8,2526.3,12.919]
[1747589996211,3.95767025,2526.8,2526.3,14.80979107]
[1747589996212,3.95786751,2526.7,2526.3,14.80979107]
[1747589996483,12.73,2526.9,2526.2,1.5655]
[1747589996484,1.5579,2527.2,2526.2,1.5655]
[1747589996823,3.956575,2527.5,2526.9,3.95733496]
[1747589996988,3.956575,2527.5,2527.0,12.921]
[1747589997189,1.5579,2528.1,2527.0,14.4865]
[1747589997421,2.15996525,2528.6,2527.5,3.95639424]
[1747589997589,2.15996525,2528.6,2527.0,14.4865]
[1747589997590,12.732,2528.4,2527.0,14.4865]
[1747589997922,3.95552502,2528.2,2527.6,3.95623274]
[1747589998087,3.95552502,2528.2,2527.7,12.921]
[1747589998289,12.732,2528.4,2527.8,1.5655]
[1747589998723,3.95522683,2528.3,2527.8,1.5655]
[1747589998924,12.731,2528.2,2527.8,1.5655]
[1747589999230,1.6513,2528.0,2526.1,0.29270678]
[1747589999461,18.77911576,2528.1,2526.0,0.46480537]
[1747589999462,3.95867146,2526.1,2526.0,0.46480537]
[1747589999632,17.20967146,2526.1,2526.0,0.46480537]
[1747589999935,27.32649083,2526.1,2526.0,0.46480537]
[1747590000093,14.07549083,2526.1,2526.0,0.46480537]
[1747590000425,13.221,2526.1,2526.0,13.71380537]
[1747590001033,13.195,2526.2,2526.0,13.71380537]
[1747590001235,17.15353709,2526.2,2526.0,13.71380537]
[1747590001441,3.95867146,2526.1,2526.0,13.71380537]
[1747590001622,1.6513,2526.8,2526.0,13.71380537]
[1747590001822,3.95857254,2526.2,2526.0,13.249]
[1747590002033,13.154,2526.1,2526.0,13.249]
[1747590002217,3.95846335,2526.3,2525.7,3.95924148]
[1747590002420,3.01216508,2526.8,2525.8,13.249]
[1747590002619,13.156,2526.3,2525.8,13.249]
[1747590002820,13.156,2526.3,2525.5,13.249]
[1747590003224,3.95851476,2526.2,2525.5,13.249]
[1747590003452,3.95880243,2526.1,2525.5,17.20859974]
[1747590003645,3.95856663,2526.2,2525.6,3.95943196]
[1747590003848,17.14276398,2526.1,2525.5,17.20859384]
[1747590004036,13.173,2526.0,2525.5,15.36584863]
[1747590004234,3.95848302,2526.3,2525.6,1.6015]
[1747590004235,13.161,2526.3,2525.6,1.6015]
[1747590004548,13.149,2526.5,2525.8,3.95905374]
[1747590004753,3.95820139,2526.4,2525.9,13.252]
[1747590005051,3.9584895,2526.3,2525.9,13.252]
[1747590005362,3.95867146,2526.1,2525.9,13.252]
[1747590005514,13.104,2526.1,2525.9,13.252]
[1747590005717,3.95846343,2526.3,2525.9,13.252]
[1747590005915,13.098,2526.2,2525.9,13.252]
[1747590006116,3.95783378,2526.7,2526.1,3.95864873]
[1747590006365,1.6513,2526.8,2526.2,17.091]
[1747590006665,3.95773909,2526.7,2526.2,17.091]
[1747590006814,17.02960812,2526.8,2526.2,21.04947196]